Cogmind - Beta 16 @@@ ROGUE MODE // 2025.12.29 @ 20:05:37 Player: Skergy Result: Destroyed by S-27 Virus with Autogun Performance ------------- Evolutions (3) 1500 Regions Visited (8) 1600 Robots Destroyed (43) 215 Value Destroyed (937) 937 Prototype IDs (2) 40 Alien Tech Used (0) 0 Bonus (1419) 1419 TOTAL SCORE: 5711 Bonus ------- High Alert Combat Kills 19 Entered Garrisons 400 Used RIF Installer 1000 Cogmind --------- Core Integrity 0/700 Matter 295/300 Energy 98/100 System Corruption 0% Temperature Cool (0) Movement Core (50) Location -7/Garrison Parts ------- > --- POWER (2) -------- (None) > --- PROPULSION (4) --- (None) > --- UTILITY (5) ------ Improved Signal Interpreter Improved Propulsion Shielding > --- WEAPON (2) ------- (None) > --- INVENTORY (5) ---- Light Nuclear Core Micro Nuclear Core Advanced Weight Redist. System Hardened Light Armor Plating Improved Datajack Peak State ------------ > --- POWER ------------ Light Nuclear Core > --- PROPULSION ------- Improved VTOL Module > --- UTILITY ---------- Advanced Weight Redist. System Improved Signal Interpreter Improved Terrain Scanner Improved Propulsion Shielding Hacking Suite > --- WEAPON ----------- Heavy Assault Rifle Chainsword > --- INVENTORY -------- Light Nuclear Core Micro Nuclear Core Targeting Computer Hardened Light Armor Plating Improved Datajack [Rating: 29] Favorites ----------- Power Light Ion Engine Engine Light Ion Engine Power Core Light Nuclear Core Propulsion Light Treads Treads Light Treads Flight Unit Improved VTOL Module Utility Structural Scanner Device Structural Scanner Storage Huge Storage Unit Processor Improved Signal Interpreter Hackware Hacking Suite Protection Improved Propulsion Shielding Weapon Light Cannon Energy Gun EM Pulse Gun Ballistic Gun Heavy Assault Rifle Ballistic Cannon Light Cannon Launcher Grenade Launcher Slashing Weapon Chainsword Special Melee Weapon Improved Datajack Build | -11 -10 -10 -9 -8 -8 -8 -7 -7 ------- Run | Yrd Mat Min Mat Mat Gar Sto Fac Gar Slots Evolved 6 | . . . 2 2 . . 2 . Power 1 | . . . . . . . 1 . Propulsion 2 | . . . 1 1 . . . . Utility 3 | . . . 1 1 . . 1 . Weapon . | . . . . . . . . . Parts Attached 32 | 6 6 1 4 9 3 . 3 . Power 6 | 1 1 . 2 2 . . . . Engine 5 | 1 1 . 2 1 . . . . Core 1 | . . . . 1 . . . . Reactor . | . . . . . . . . . Propulsion 9 | 2 1 . 1 4 1 . . . Treads 4 | 2 1 . 1 . . . . . Leg . | . . . . . . . . . Wheel . | . . . . . . . . . Hover . | . . . . . . . . . Flight 5 | . . . . 4 1 . . . Utility 8 | 1 2 . . 3 . . 2 . Device 3 | . 1 . . 1 . . 1 . Storage 2 | 1 1 . . . . . . . Processor 1 | . . . . 1 . . . . Hackware 1 | . . . . 1 . . . . Protection 1 | . . . . . . . 1 . Artifact . | . . . . . . . . . Weapon 9 | 2 2 1 1 . 2 . 1 . Energy Gun 1 | 1 . . . . . . . . Energy Cannon . | . . . . . . . . . Ballistic Gun 2 | 1 . . . . 1 . . . Ballistic Cannon 2 | . 2 . . . . . . . Launcher 2 | . . 1 1 . . . . . Special Weapon . | . . . . . . . . . Impact Weapon . | . . . . . . . . . Slashing Weapon 1 | . . . . . 1 . . . Piercing Weapon . | . . . . . . . . . Special Melee Weapon 1 | . . . . . . . 1 . Unidentified Prototypes 2 | . . . 1 1 . . . . Corrupted Parts 1 | . . . 1 . . . . . System Corruption 2 | . . . 2 . . . . . Parts Lost 18 | . 1 . 3 1 4 2 2 5 Power 1 | . . . . . . . . 1 Propulsion 7 | . . . 2 . 3 1 . 1 Utility 4 | . . . . . . 1 1 2 Weapon 6 | . 1 . 1 1 1 . 1 1 Highest Loss Streak 5 | . 1 . 2 1 4 2 2 5 To Critical Strikes . | . . . . . . . . . Average Backups 10 | 2 8 16 17 16 4 5 4 5 Power 1 | . 1 2 2 2 1 2 2 2 Propulsion 3 | 1 2 7 6 5 . . . . Utility . | . . . . . 1 2 1 2 Weapon 4 | . 3 6 7 8 1 . . . Tool/Special . | . . . . . . . . . Unused Backups 19 | . . . . 10 1 2 2 4 Power 3 | . . . . . . . 1 2 Propulsion 3 | . . . . 2 1 . . . Utility 4 | . . . . . . 1 1 2 Weapon 8 | . . . . 7 . 1 . . Tool/Special 1 | . . . . 1 . . . . Average Slot Usage (%) 82 | . 91 100 80 64 81 77 59 49 Engine 8 | . 14 14 7 7 . . . . Core 2 | . . . . 1 9 9 7 5 Treads 19 | . 28 28 29 13 . . . . Flight 4 | . . . . 9 19 17 7 5 Device 10 | . 6 14 11 10 18 15 11 6 Storage 9 | . 14 14 11 6 . . . . Processor 2 | . . . . 1 9 9 7 7 Hackware 2 | . . . . 1 9 9 7 7 Energy Gun 2 | . 6 . . . . . . . Ballistic Gun 3 | . 6 . . . 7 9 7 . Ballistic Cannon 10 | . 15 23 11 9 . . . . Launcher 2 | . . 4 10 4 . . . . Slashing Weapon 2 | . . . . . 8 9 7 6 Peak Build Rating 29 | 6 8 8 12 22 25 25 29 24 Average Rating 12 | 4 6 8 9 12 23 24 25 21 On Entrance 14 | . 6 8 8 11 22 24 23 24 Avg Prop Armor Cover (%) 4 | . . . . 4 . . . . Naked Turns . | . . . . . . . . . Heaviest Build 95 | 12 92 92 95 95 12 12 14 10 Greatest Support 60 | 40 40 40 60 40 29 19 14 14 Greatest Overweight (x) 2 | . 2 2 2 2 . . . . Average Overweight (x) . | . . 2 1 . . . . . Largest Inventory Capacity 25 | 8 25 25 25 25 5 5 5 5 Average Capacity 15 | 7 14 25 25 20 5 5 5 5 Most Carried 23 | 4 16 16 19 23 5 5 5 5 Average Carried 10 | 2 8 16 17 16 4 4 4 5 Final Capacity 25 | 8 25 25 25 5 5 5 5 5 Final Carried 19 | 4 16 16 19 5 5 5 5 5 Class Distribution -------------------- 96% | Mutant 3% | Scavenger-Sprinter Dominant Class ---------------- Mutant | -10/Materials Mutant | -10/Mines Mutant | -9/Materials Mutant | -8/Materials Mutant | -8/Garrison Mutant | -8/Storage Mutant | -7/Factory Mutant | -7/Garrison Resources | -11 -10 -10 -9 -8 -8 -8 -7 -7 ----------- Run | Yrd Mat Min Mat Mat Gar Sto Fac Gar Matter Collected 875 | 226 173 13 156 75 232 . . . Remotely . | . . . . . . . . . Salvage Created 859 | . 342 20 394 61 . 42 . . Parts 78 | . 29 2 40 3 . 4 . . Haulers Intercepted 1 | . . . 1 . . . . . Recyclers Shooed 1 | . . . 1 . . . . . Parts Field Recycled . | . . . . . . . . . Retrieved Matter . | . . . . . . . . . Parts Self-Destructed . | . . . . . . . . . Prevented . | . . . . . . . . . Parts Restored . | . . . . . . . . . Kills | -11 -10 -10 -9 -8 -8 -8 -7 -7 ------- Run | Yrd Mat Min Mat Mat Gar Sto Fac Gar Combat Hostiles Destroyed 33 | . 12 3 15 2 . 1 . . Melee 1 | . . . . . . 1 . . Guns 7 | . 7 . . . . . . . Cannons 13 | . 5 1 5 2 . . . . AOE 12 | . . 2 10 . . . . . Classes Destroyed 8 | . 3 . 5 . . . . . Worker 1 | . . . 1 . . . . . Builder 3 | . . . 3 . . . . . Hauler 1 | . . . 1 . . . . . Recycler 2 | . . . 2 . . . . . Watcher 3 | . 1 . 2 . . . . . Swarmer 16 | . 6 3 7 . . . . . Grunt 15 | . 6 . 6 2 . 1 . . Sentry 2 | . . . 2 . . . . . Best Kill Streak 13 | . 3 3 13 2 . 1 . . Combat Bots Only 7 | . 3 3 7 2 . 1 . . Max Kills in Single Turn 5 | . 2 3 5 1 . 1 . . Gunslinging 1 | . 1 . . . . . . . Exploded 4 | . . 2 4 . . . . . Melee 1 | . . . . . . 1 . . Uniques/NPCs Destroyed . | . . . . . . . . . Combat | -11 -10 -10 -9 -8 -8 -8 -7 -7 -------- Run | Yrd Mat Min Mat Mat Gar Sto Fac Gar Hostile Shots Fired 298 | . 82 16 42 12 . 32 15 99 Missed 107 | . 22 8 15 4 . 16 7 35 Hits 191 | . 60 8 27 8 . 16 8 64 Projectile 191 | . 60 8 27 8 . 16 8 64 Damage Taken 2453 | . 559 149 301 119 98 239 124 864 Core 994 | . 87 15 44 15 25 107 18 683 Absorbed by Shields 109 | . . . . . . . . 109 Redirected to Shielding 36 | . . . . . . . 11 25 Core Remaining (%) 80 | 100 . 59 89 . . 73 . . Volleys Fired 71 | . 30 1 27 13 . . . . Largest 2 | . 2 2 2 1 . . . . Hottest 60 | . 60 60 60 30 . . . . Shots Fired 111 | . 60 2 36 13 . . . . Gun 44 | . 44 . . . . . . . Cannon 57 | . 16 1 27 13 . . . . Launcher 10 | . . 1 9 . . . . . Special . | . . . . . . . . . Kinetic 81 | . 40 1 27 13 . . . . Thermal . | . . . . . . . . . Explosive 10 | . . 1 9 . . . . . Electromagnetic 20 | . 20 . . . . . . . Robot Hit Streak 9 | . 9 1 6 6 . . . . Robot Miss Streak 4 | . 4 1 2 1 . . . . Penetration Max . | . . . . . . . . . Secondary Targets 4 | . 4 . . . . . . . Max Gunslinging Chain 1 | . 1 . . . . . . . Shots Hit Robots 78 | . 37 1 27 10 . 1 2 . Core Hits 61 | . 16 3 37 4 . 1 . . Critical Kills . | . . . . . . . . . Critical Parts Destroyed . | . . . . . . . . . Critical Strikes 4 | . 2 . 2 . . . . . Blast 3 | . 1 . 2 . . . . . Corrupt 1 | . 1 . . . . . . . Melee Attacks 23 | . . . . . . 8 3 12 Impact . | . . . . . . . . . Slashing 21 | . . . . . . 8 1 12 Piercing . | . . . . . . . . . Sneak Attacks 2 | . . . . . . . 2 . Combat Hostiles . | . . . . . . . . . Follow-up Attacks . | . . . . . . . . . Damage Inflicted 2453 | . 544 87 1621 162 . 39 . . Guns 394 | . 394 . . . . . . . Cannons 709 | . 150 17 380 162 . . . . Explosions 1311 | . . 70 1241 . . . . . Melee 39 | . . . . . . 39 . . Ramming . | . . . . . . . . . Kinetic 891 | . 332 17 380 162 . . . . Thermal 229 | . . . 229 . . . . . Explosive 1028 | . . 70 958 . . . . . Electromagnetic 266 | . 212 . 54 . . . . . Impact . | . . . . . . . . . Slashing 39 | . . . . . . 39 . . Piercing . | . . . . . . . . . Highest Corruption 5 | . . . 5 . . . . . Average Corruption 3 | . . . 3 . . . . . Corruption Purged . | . . . . . . . . . Corruption Blocked . | . . . . . . . . . Effects 6 | . . . 6 . . . . . Message Errors 2 | . . . 2 . . . . . Energy Discharges 1 | . . . 1 . . . . . Data Loss (minor) 3 | . . . 3 . . . . . Overload Shots . | . . . . . . . . . Overflow Damage 6 | . . . 6 . . . . . Projectiles . | . . . . . . . . . Explosions 6 | . . . 6 . . . . . Melee . | . . . . . . . . . Knockbacks 3 | . 1 . 2 . . . . . Impact . | . . . . . . . . . Kinetic 3 | . 1 . 2 . . . . . Secondary . | . . . . . . . . . Self-Inflicted Damage 57 | . . 40 17 . . . . . Shots 2 | . . 1 1 . . . . . Rammed . | . . . . . . . . . Targets Rammed . | . . . . . . . . . Kicked . | . . . . . . . . . Crushed . | . . . . . . . . . Highest Temperature 114 | . 114 . 6 . . . . . Average Temperature 44 | . 52 . 3 . . . . . Received Heat Transfer 555 | . 198 36 105 63 . 108 9 36 Siege Activations . | . . . . . . . . . Martial Activations . | . . . . . . . . . Shielding Activations . | . . . . . . . . . Robots Disrupted . | . . . . . . . . . Combat Hostiles . | . . . . . . . . . Robots Corrupted . | . . . . . . . . . Combat Hostiles . | . . . . . . . . . Parts Fried . | . . . . . . . . . Impact Corruptions . | . . . . . . . . . Robots Melted . | . . . . . . . . . Combat Hostiles . | . . . . . . . . . Parts Melted . | . . . . . . . . . Heat Transferred 250 | . . . 250 . . . . . Parts Sabotaged . | . . . . . . . . . Parts Stolen . | . . . . . . . . . Parts Stripped . | . . . . . . . . . Power Chain Reactions . | . . . . . . . . . Alert | -11 -10 -10 -9 -8 -8 -8 -7 -7 ------- Run | Yrd Mat Min Mat Mat Gar Sto Fac Gar Maximum Alert Level 2 | . . . 2 . 1 . . . Low Security (%) 91 | 100 100 100 59 100 91 100 100 100 Level 1 7 | . . . 36 . 8 . . . Level 2 . | . . . 4 . . . . . Level 3 . | . . . . . . . . . Level 4 . | . . . . . . . . . Level 5 . | . . . . . . . . . High Security . | . . . . . . . . . Max Security . | . . . . . . . . . Peak Influence 407 | . 124 91 407 172 209 170 84 35 Initial 162 | . . 4 15 162 107 101 72 28 Average 88 | . 40 21 171 146 183 115 64 24 Influence Increases 1459 | . 339 91 570 113 142 129 68 7 Destroy 0b10 Robot/C 660 | . 240 60 300 40 . 20 . . Destroy 0b10 Robot/NC 50 | . 5 . 45 . . . . . Destroy Leader 138 | . 52 10 66 10 . . . . Successful Hack 97 | . 26 . 3 3 42 . 23 . Disable Machine 90 | . . 15 60 . . 15 . . Anti-Garrison Action 100 | . . . . . 100 . . . Destroy Structure 84 | . 1 6 66 . . 4 . 7 Partial Spotted 105 | . . . . 60 . 15 30 . Lose Combat Pursuer 135 | . 15 . 30 . . 75 15 . Influence Decreases 1459 | . 327 62 226 333 98 178 188 47 Entered New Map 523 | . . 8 26 223 58 108 88 12 Time Decay 771 | . 317 54 170 100 . 50 80 . Lost Part 165 | . 10 . 30 10 40 20 20 35 Squads Dispatched 8 | . 3 . 2 1 . 1 1 . Investigation 2 | . 2 . . . . . . . Extermination . | . . . . . . . . . Reinforcement 6 | . 1 . 2 1 . 1 1 . Assault . | . . . . . . . . . Garrison . | . . . . . . . . . Intercept . | . . . . . . . . . Searches Triggered . | . . . . . . . . . Construction Impeded . | . . . . . . . . . Haulers Reinforced . | . . . . . . . . . Active Scanning Responses . | . . . . . . . . . Cargo Convoy Interrupts . | . . . . . . . . . Stealth | -11 -10 -10 -9 -8 -8 -8 -7 -7 --------- Run | Yrd Mat Min Mat Mat Gar Sto Fac Gar Distress Signals 7 | . 1 . 4 . . 1 1 . Communications Jammed . | . . . . . . . . . Distress Signals . | . . . . . . . . . Times Spotted 87 | . 15 5 21 8 . 14 7 17 Peak Tracking Total 17 | . 4 3 9 3 . 13 5 17 Tactical Retreats 6 | . 1 . 2 . . 2 1 . Traps | -11 -10 -10 -9 -8 -8 -8 -7 -7 ------- Run | Yrd Mat Min Mat Mat Gar Sto Fac Gar Traps Triggered 3 | . . . . . 1 . . 2 Indirectly . | . . . . . . . . . Trap Hack Attempts . | . . . . . . . . . Triggered . | . . . . . . . . . Disarmed . | . . . . . . . . . Reprogrammed . | . . . . . . . . . Reused . | . . . . . . . . . Traps Extracted . | . . . . . . . . . Installed . | . . . . . . . . . Triggered . | . . . . . . . . . Machines | -11 -10 -10 -9 -8 -8 -8 -7 -7 ---------- Run | Yrd Mat Min Mat Mat Gar Sto Fac Gar Machines Disabled 8 | . 2 1 4 . . 1 . . Max in Single Turn 3 | . 1 1 3 . . 1 . . Machines Repaired . | . . . . . . . . . Machines Dismantled . | . . . . . . . . . Machines Sabotaged . | . . . . . . . . . Overloaded Fab Kills . | . . . . . . . . . Hacking | -11 -10 -10 -9 -8 -8 -8 -7 -7 --------- Run | Yrd Mat Min Mat Mat Gar Sto Fac Gar Machines Accessed 20 | . 6 . 1 2 4 3 4 . Terminals 12 | . 4 . . . 4 2 2 . Fabricators . | . . . . . . . . . Repair Stations . | . . . . . . . . . Recycling Units 4 | . 2 . 1 . . 1 . . Scanalyzers 2 | . . . . 1 . . 1 . Garrison Access 2 | . . . . 1 . . 1 . Total Hacks 46 | . 17 . 1 3 5 6 14 . Successful 22 | . 7 . 1 2 4 2 6 . Failed 23 | . 10 . . 1 1 4 7 . Catastrophic 6 | . 4 . . . . 1 1 . Database Lockouts 1 | . . . . . . . 1 . Manual 23 | . 15 . 1 . . 2 5 . Terminals 29 | . 13 . . . 5 3 8 . Fabricators . | . . . . . . . . . Repair Stations . | . . . . . . . . . Recycling Units 8 | . 4 . 1 . . 3 . . Scanalyzers 6 | . . . . 2 . . 4 . Garrison Access 3 | . . . . 1 . . 2 . Terminal Hacks 6 | . . . . . 4 1 1 . Open Door 2 | . . . . . 1 1 . . Emergency Access Points 1 | . . . . . 1 . . . Hauler Manifests 1 | . . . . . . . 1 . Garrison Registry 1 | . . . . . 1 . . . Patrol Navigation 1 | . . . . . 1 . . . Fabricator Hacks . | . . . . . . . . . Repair Station Hacks . | . . . . . . . . . Recycling Unit Hacks 1 | . . . . . . 1 . . Retrieve Components 1 | . . . . . . 1 . . Scanalyzer 2 | . . . . 1 . . 1 . Retrieve Study 2 | . . . . 1 . . 1 . Garrison Access Hacks 3 | . . . . 1 . . 2 . Unlock Access 2 | . . . . 1 . . 1 . Coupler Status 1 | . . . . . . . 1 . Unauthorized Hacks 9 | . 6 . 1 . . . 2 . Terminals 7 | . 5 . . . . . 2 . Track 1 | . 1 . . . . . . . Assimilate 2 | . 2 . . . . . . . Botnet 3 | . 1 . . . . . 2 . Operators 1 | . 1 . . . . . . . Fabricators . | . . . . . . . . . Repair Stations . | . . . . . . . . . Recycling Units 2 | . 1 . 1 . . . . . Reject 2 | . 1 . 1 . . . . . Scanalyzers . | . . . . . . . . . Garrison Access . | . . . . . . . . . Data Cores Recovered . | . . . . . . . . . Used . | . . . . . . . . . Hacking Detections 14 | . 5 . . 2 3 1 3 . Full Trace Events 3 | . 3 . . . . . . . Feedback Events . | . . . . . . . . . Feedback Blocked . | . . . . . . . . . Robot Schematics Acquired . | . . . . . . . . . Robots Built . | . . . . . . . . . Authchips . | . . . . . . . . . Time . | . . . . . . . . . Total Robot Build Rating . | . . . . . . . . . Part Schematics Acquired . | . . . . . . . . . Parts Built . | . . . . . . . . . Authchips . | . . . . . . . . . Time . | . . . . . . . . . Total Part Build Rating . | . . . . . . . . . Part Studies Acquired 2 | . . . . 1 . . 1 . Parts Repaired . | . . . . . . . . . Time . | . . . . . . . . . Parts Recycled . | . . . . . . . . . Recycled Matter . | . . . . . . . . . Retrieved Matter . | . . . . . . . . . Retrieved Components 2 | . . . . . . 2 . . Parts Scanalyzed . | . . . . . . . . . Part Schematics Acquired . | . . . . . . . . . Parts Damaged . | . . . . . . . . . Bothacking | -11 -10 -10 -9 -8 -8 -8 -7 -7 ------------ Run | Yrd Mat Min Mat Mat Gar Sto Fac Gar Used RIF Installer 2 | . . . . . 1 . . 1 Hotswap 1 | . . . . . . . . 1 Robots Hacked 1 | . . . . . . . 1 . Non-combat 1 | . . . . . . . 1 . Combat . | . . . . . . . . . Robot Hacks Applied 2 | . . . . . . . 2 . parse_system 1 | . . . . . . . 1 . no_distress 1 | . . . . . . . 1 . Relay Couplers Released . | . . . . . . . . . Fabnet Peak Effective % . | . . . . . . . . . Robots Rewired . | . . . . . . . . . Allies Hacked . | . . . . . . . . . Hacks Repelled . | . . . . . . . . . Allies | -11 -10 -10 -9 -8 -8 -8 -7 -7 -------- Run | Yrd Mat Min Mat Mat Gar Sto Fac Gar Total Allies . | . . . . . . . . . Largest Group . | . . . . . . . . . Highest-Rated Group . | . . . . . . . . . Highest-Rated Ally . | . . . . . . . . . Total Orders . | . . . . . . . . . Ally Attacks . | . . . . . . . . . Total Damage . | . . . . . . . . . Kills . | . . . . . . . . . Allies Corrupted . | . . . . . . . . . Allies Melted . | . . . . . . . . . Intel | -11 -10 -10 -9 -8 -8 -8 -7 -7 ------- Run | Yrd Mat Min Mat Mat Gar Sto Fac Gar Active Infowar (turns) 1824 | . 396 300 479 207 248 77 117 . Terrain 117 | . . . . . . . 117 . Structural 1707 | . 396 300 479 207 248 77 . . Robot Analysis Total . | . . . . . . . . . Derelict Logs Recovered . | . . . . . . . . . Drone Launches . | . . . . . . . . . Drone Recoveries . | . . . . . . . . . Exploration | -11 -10 -10 -9 -8 -8 -8 -7 -7 ------------- Run | Yrd Mat Min Mat Mat Gar Sto Fac Gar Turns Passed 2545 | 83 843 300 479 207 248 100 177 108 Spaces Moved 2293 | 47 368 93 154 147 711 219 369 185 Core 33 | 4 . . . . . . . 29 Treads 696 | 43 368 93 154 38 . . . . Legs . | . . . . . . . . . Wheels . | . . . . . . . . . Hover . | . . . . . . . . . Flight 1564 | . . . . 109 711 219 369 156 Fastest Speed 29 | 50 160 320 240 29 29 34 35 35 Average Speed 94 | 150 199 320 260 105 33 34 35 37 Slowest Speed 320 | 160 320 320 320 320 35 35 35 50 Overloaded Moves . | . . . . . . . . . Propulsion Burnouts . | . . . . . . . . . Robots Hopped 15 | . . . . 2 6 6 1 . Potential Cave-ins 16 | . . . . . 8 . . 8 Cave-ins Triggered . | . . . . . . . . . Exploration Rate (%) 34 | 5 60 24 18 19 82 47 12 41 Regions Visited 8 Branch Regions 2 Pre-discovered Areas . | . . . . . . . . . Known Exits Taken 3 | . . . . 1 . 1 1 . Unknown Exits Taken 4 | 1 1 1 1 . . . . . Scrap Searched . | . . . . . . . . . Spaces Dug 14 | . . . . . . 4 . 10 Terrain Destroyed 97 | . . 6 77 . . 4 . 10 Melee 14 | . . . . . . 4 . 10 Projectile . | . . . . . . . . . AOE 83 | . . 6 77 . . . . . Terrain Rammed . | . . . . . . . . . Walls Destroyed . | . . . . . . . . . Machines Disabled . | . . . . . . . . . Actions | -11 -10 -10 -9 -8 -8 -8 -7 -7 --------- Run | Yrd Mat Min Mat Mat Gar Sto Fac Gar Total 2505 | 56 417 95 196 184 713 226 412 206 Wait 46 | . 1 1 2 6 . 2 34 . Move 2254 | 46 367 92 153 142 697 206 366 185 Hop 15 | . . . . 2 6 6 1 . Pick Up 32 | 4 10 . 4 5 5 2 2 . Fast Attach 20 | 6 3 . 5 4 . . 2 . Attach 9 | . . . 2 4 3 . . . Detach 6 | . 1 . 2 3 . . . . Swap 7 | . 3 1 . 1 . . 2 . Drop 13 | . 2 . 1 4 2 2 2 . Fire 71 | . 30 1 27 13 . . . . Melee 23 | . . . . . . 8 3 12 Ram . | . . . . . . . . . Kick . | . . . . . . . . . Crush . | . . . . . . . . . Escape Stasis 9 | . . . . . . . . 9 Rewire . | . . . . . . . . . Trap . | . . . . . . . . . Miscellaneous . | . . . . . . . . . Route ------- -11/Scrapyard -10/Materials (discovered 3 exits: *Mat / [*Min x2]) -10/Mines -9/Materials -8/Materials (discovered 2 exits: *Sto / Gar) -8/Garrison (discovered 3 exits: *Sto x3) -8/Storage -7/Factory -7/Garrison (discovered 1 exit: [*Fac]) History --------- Turn | Location | Event 5 | -11/Scrapyard | Discovered new exit (range 14) 84 | -11/Scrapyard | Entered Materials 245 | -10/Materials | Discovered new exit (range 9) 294 | -10/Materials | Discovered new exit (range 14) 313 | -10/Materials | Build established: Mutant 770 | -10/Materials | Discovered new exit (range 16) 927 | -10/Materials | Entered Mines 1163 | -10/Mines | Discovered new exit (range 13) 1227 | -10/Mines | Entered Materials 1227 | -9/Materials | Evolved 2 slots: Propulsion x1, Utility x1 1545 | -9/Materials | Destroyed 7 combat bots 1674 | -9/Materials | Discovered new exit (range 9) 1706 | -9/Materials | Entered another Materials area 1706 | -8/Materials | Evolved 2 slots: Propulsion x1, Utility x1 1706 | -8/Materials | Discovered new exit (range 7) 1907 | -8/Materials | Identified exit to Garrison 1913 | -8/Materials | Entered Garrison 1913 | -8/Garrison | Discovered recently destroyed garrison 1954 | -8/Garrison | Lost 4 parts (3n1w) 1993 | -8/Garrison | Installed Relay Interface Framework 2030 | -8/Garrison | Discovered new exit (range 9) 2034 | -8/Garrison | Identified exit to Storage 2098 | -8/Garrison | Discovered exit to Storage (range 15) 2139 | -8/Garrison | Discovered exit to Storage (range 45) 2139 | -8/Garrison | Discovered exit to Storage (range 19) 2139 | -8/Garrison | Discovered exit to Storage (range 56) 2161 | -8/Garrison | Entered Storage 2254 | -8/Storage | Discovered new exit (range 9) 2257 | -8/Storage | Identified exit to Factory 2261 | -8/Storage | Entered Factory 2261 | -7/Factory | Evolved 2 slots: Power x1, Utility x1 2281 | -7/Factory | Central database locked down 2437 | -7/Factory | Identified exit to Garrison 2438 | -7/Factory | Entered Garrison 2502 | -7/Garrison | Expanded RIF knowledge: Hotswap 2518 | -7/Garrison | Triggered checkpoint 2520 | -7/Garrison | Triggered checkpoint 2532 | -7/Garrison | Core integrity fell below 50% 2542 | -7/Garrison | Core integrity fell below 20% 2544 | -7/Garrison | Discovered new exit (range 14) 2546 | -7/Garrison | Destroyed by S-27 Virus with Autogun Last Messages --------------- 02527_ Stasis field depleted. 02528_ Triggered Stasis Trap. 02528_ A bubble of rippling energy engulfs the area. 02528_ Field strength at 93. 02529_ Field strength at 81. 02530_ S-27 Virus destroyed. 02530_ Field strength at 56. 02530_ Chainsword destroyed. 02531_ Field strength at 42. 02531_ S-27 Virus destroyed. 02532_ Field strength at 23. 02533_ Stasis field depleted. 02533_ Adv. Weight Redist. System destroyed. 02534_ S-27 Virus destroyed. 02544_ EXIT=FOUND 02544_ Hacking Suite destroyed. 02546_ S-27 Virus suffers critical hit (Destroy). 02546_ S-27 Virus destroyed. Map ----- +----------------------------------------------------+ | =%[[ #??????????????????????? | | *=^% #??????????????????????? | | # %= #??????????????????????? | | ## ## ##++######### #??????????????????????? | | ?# ?# ???# ?????????# #??????????????????????? | | ?????#?????#??????????# #??????????????????????? | | ??????????????????????# #??????????????????????? | | ??????????????????????#%= #??????????????????????? | | ??????????????????????#[ #??????????????????????? | | ??????????????????????# ##"""##### #?????????? | | ??????????????????????# #???????? | | ??????????????????????# #???????? | | ??????????????????????#=% #############??????????? | | ??????????????????????# s #??????????????????????? | | ??????????????????????# #??????????????????????? | | ??????????????????????# #??????????????????????? | | ??????????????????????# #??????????????????????? | | ??????????????????????# #??????????????????????? | | ??????????????????????# #??????????????????????? | | ??????????????????????# #??????????????????????? | | ??????????????????????# #??????????????????????? | | ??????????????????????# #??????????????????????? | | ??????????????????????# #??????????????????????? | | ??????????????????????# #??????????????????????? | | ??????????????????????# #??????????????????????? | | ??????????????????????# @#??????????????????????? | | ??????????????????????# #??????????????????????? | | ??????????????????????# #??????????????????????? | | ??????????????????????# #??????????????????????? | | ??????????????????????# #??????????????????????? | | ??????????????????????# #??????????????????????? | | ?????????????????????? #??????????????????????? | | ??????????????????????# ??????????????????????? | | ??????????????????????#